bitfinex/quotes_BTCUSD_20230905
["timestamp","ask_amount","ask_price","bid_price","bid_amount"]
[1693918290841,0.0196,25806.0,25805.0,3.221272]
[1693918291278,0.0196,25806.0,25805.0,3.629872]
[1693918291483,0.0196,25806.0,25805.0,3.78397946]
[1693918292321,0.0196,25806.0,25805.0,4.01084946]
[1693918292526,0.0206,25806.0,25805.0,4.02384946]
[1693918292942,0.0206,25806.0,25805.0,3.97697946]
[1693918293143,0.0216,25806.0,25805.0,3.99397946]
[1693918293350,0.0216,25806.0,25805.0,4.04123097]
[1693918293776,0.0216,25806.0,25805.0,3.99397946]
[1693918294593,0.0216,25806.0,25805.0,4.03967194]
[1693918295002,0.0216,25806.0,25805.0,3.99397946]
[1693918295207,0.0216,25806.0,25805.0,4.29397946]
[1693918295408,0.1185613,25807.0,25805.0,4.29397946]
[1693918295615,0.1185613,25807.0,25806.0,3.24138427]
[1693918296025,0.228,25808.0,25807.0,2.343449]
[1693918296207,0.228,25808.0,25807.0,2.446049]
[1693918296447,0.0197,25808.0,25807.0,2.446049]
[1693918297480,0.174753,25808.0,25807.0,2.446049]
[1693918297889,0.174753,25808.0,25807.0,2.83269427]
[1693918298094,0.0197,25808.0,25807.0,2.48849983]
[1693918298736,0.0197,25808.0,25807.0,2.49049983]
[1693918298737,0.0377,25808.0,25807.0,2.49049983]
[1693918298938,0.0557,25808.0,25807.0,2.49249983]
[1693918299764,0.210752,25808.0,25807.0,2.49249983]
[1693918304736,0.59739727,25808.0,25807.0,0.797483]
[1693918304951,0.96041489,25808.0,25807.0,0.0225]
[1693918305358,0.84023637,25808.0,25807.0,0.0225]
[1693918306605,0.84023637,25808.0,25807.0,0.004]
[1693918306809,0.84023637,25808.0,25807.0,0.0225]
[1693918308053,0.84023637,25808.0,25807.0,0.797483]
[1693918308261,0.84023637,25808.0,25807.0,0.004]
[1693918310619,0.61889727,25808.0,25807.0,0.004]
[1693918310839,0.8784111,25808.0,25807.0,0.004]
[1693918311043,0.232252,25808.0,25807.0,0.778983]
[1693918311289,0.232252,25808.0,25807.0,2.431549]
[1693918311913,0.232252,25808.0,25807.0,0.881583]
[1693918312118,0.61889727,25808.0,25807.0,0.1066]
[1693918312339,0.61889727,25808.0,25807.0,0.778983]
[1693918312544,0.61889727,25808.0,25807.0,0.004]
[1693918312953,0.61889727,25808.0,25807.0,0.778983]
[1693918314009,0.210752,25808.0,25807.0,2.46762249]
[1693918316224,0.210752,25808.0,25807.0,2.450049]
[1693918316601,0.210752,25808.0,25807.0,2.49251214]
[1693918318194,0.210752,25808.0,25807.0,2.450049]
[1693918318395,0.85051939,25808.0,25807.0,1.675066]
[1693918318641,0.85051939,25808.0,25807.0,1.572466]
[1693918319066,0.59739727,25808.0,25807.0,2.347449]
[1693918319476,0.85577748,25808.0,25807.0,0.778983]
[1693918319629,0.85577748,25808.0,25807.0,0.004]
[1693918320262,0.85577748,25808.0,25807.0,0.797483]
[1693918320650,0.85577748,25808.0,25807.0,0.778983]
[1693918321056,0.85577748,25808.0,25807.0,0.004]
[1693918321673,0.59739727,25808.0,25807.0,0.778983]
[1693918322029,0.59739727,25808.0,25807.0,0.83032323]
[1693918322188,0.59739727,25808.0,25807.0,2.48288923]
[1693918323521,0.65801878,25808.0,25807.0,2.48288923]
[1693918326636,0.210752,25808.0,25807.0,2.750049]
[1693918327446,0.192752,25808.0,25807.0,2.748049]
[1693918327688,0.193752,25808.0,25807.0,2.748049]
[1693918328110,0.193752,25808.0,25807.0,3.13469427]
[1693918328524,0.175752,25808.0,25807.0,3.13269427]
[1693918328733,0.176752,25808.0,25807.0,3.13269427]
[1693918329158,0.175752,25808.0,25807.0,2.746049]
[1693918329359,0.175752,25808.0,25807.0,2.763049]
[1693918330177,0.176752,25808.0,25807.0,2.779049]
[1693918332033,0.176752,25808.0,25807.0,2.82301225]
[1693918332242,0.176752,25808.0,25807.0,2.779049]
[1693918332392,0.176752,25808.0,25807.0,3.16569427]
[1693918332817,0.0217,25808.0,25807.0,3.16569427]
[1693918333225,0.03,25809.0,25808.0,0.0185]
[1693918333452,0.01983563,25812.0,25811.0,0.0185]
[1693918333654,0.01983563,25812.0,25811.0,2.445689]
[1693918333885,0.01983563,25812.0,25811.0,3.220552]
[1693918334092,0.01983563,25812.0,25811.0,3.5826073]
[1693918334431,0.01983563,25812.0,25811.0,3.6312845]
[1693918334636,0.59288026,25815.0,25813.0,0.0185]
[1693918334955,0.81386351,25815.0,25814.0,0.774773]
[1693918335178,1.16847009,25815.0,25814.0,0.774773]
[1693918335334,1.90832088,25815.0,25811.0,1.549701]
[1693918335533,0.38561557,25814.0,25811.0,1.549701]
[1693918335760,0.0556138,25813.0,25811.0,0.774845]
[1693918336136,0.001,25812.0,25811.0,0.788845]
[1693918336378,0.0566138,25812.0,25811.0,0.788845]
[1693918336581,0.44325907,25812.0,25811.0,0.788845]
[1693918336906,0.44325907,25812.0,25811.0,1.563708]
[1693918337368,0.003,25814.0,25813.0,0.0185]
[1693918337571,0.13202359,25821.0,25820.0,0.1785]
[1693918337815,0.27842834,25824.0,25823.0,0.1785]
[1693918337816,0.13932279,25824.0,25823.0,0.1785]
[1693918337982,0.39620834,25828.0,25827.0,0.0185]
[1693918337983,0.25159381,25828.0,25827.0,0.0185]
[1693918338158,0.25159381,25828.0,25827.0,1.567266]
[1693918338529,0.0197,25832.0,25831.0,0.0185]
[1693918338735,0.40634527,25832.0,25831.0,1.669626]
[1693918338961,0.40634527,25832.0,25831.0,2.6882799]
[1693918338962,0.0197,25832.0,25831.0,2.6882799]
[1693918339160,0.174601,25832.0,25831.0,2.6882799]
[1693918339365,0.24656967,25833.0,25832.0,0.0185]
[1693918339568,0.0197,25834.0,25833.0,0.0185]
[1693918339695,0.0197,25834.0,25833.0,1.669506]
[1693918339896,0.0197,25834.0,25833.0,2.28380018]
[1693918340098,0.0197,25834.0,25833.0,3.05800318]
[1693918340302,0.095,25836.0,25835.0,0.1985]
[1693918340518,0.095,25836.0,25835.0,3.517672]
[1693918341635,0.095,25836.0,25835.0,3.542672]
[1693918341830,0.095,25836.0,25835.0,3.85286462]
[1693918342032,0.095,25836.0,25835.0,3.91097386]
[1693918342239,0.095,25836.0,25835.0,3.93597386]
[1693918342434,0.096,25836.0,25835.0,3.96097386]
[1693918342858,0.096,25836.0,25835.0,3.62578124]
[1693918343094,0.096,25836.0,25835.0,2.88493824]
[1693918344095,0.096,25836.0,25835.0,2.826829]
[1693918344392,0.096,25836.0,25835.0,2.87842117]
[1693918344595,0.096,25836.0,25835.0,2.8784699]
[1693918344797,0.096,25836.0,25835.0,3.0584699]
[1693918345400,0.096,25836.0,25835.0,2.988329]
[1693918345623,0.096,25836.0,25835.0,2.706829]
[1693918345955,0.096,25836.0,25835.0,3.10358852]
[1693918346204,0.096,25836.0,25835.0,1.796786]
[1693918346617,0.096,25836.0,25835.0,2.706829]
[1693918346834,0.096,25836.0,25835.0,2.75484247]
[1693918347020,0.096,25836.0,25835.0,2.61894247]
[1693918347194,0.096,25836.0,25835.0,1.84479947]
[1693918347600,0.096,25836.0,25835.0,2.61894247]
[1693918348222,0.096,25836.0,25835.0,2.75484247]
[1693918348818,0.096,25836.0,25835.0,2.706829]
[1693918349240,0.096,25836.0,25835.0,3.55001697]
[1693918349832,0.096,25836.0,25835.0,3.61325176]
[1693918350038,0.096,25836.0,25835.0,3.59001697]
[1693918350249,0.096,25836.0,25835.0,3.67871697]
[1693918350454,0.096,25836.0,25835.0,3.06199457]
[1693918350880,0.096,25836.0,25835.0,2.92609457]
[1693918351331,0.096,25836.0,25835.0,3.006829]
[1693918351590,0.096,25836.0,25835.0,3.06434977]
[1693918352008,0.096,25836.0,25835.0,3.483709]
[1693918352208,0.096,25836.0,25835.0,4.34215954]
[1693918352362,0.096,25836.0,25835.0,4.46009954]
[1693918352713,0.096,25836.0,25835.0,4.45805954]
[1693918352867,0.096,25836.0,25835.0,4.47779954]
[1693918353065,0.096,25836.0,25835.0,4.44377954]
[1693918353267,0.1524,25839.0,25835.0,4.44377954]
[1693918353268,0.1524,25839.0,25838.0,0.4871]
[1693918353496,0.0197,25841.0,25840.0,0.4871]
[1693918353826,0.0197,25841.0,25840.0,2.99353127]
[1693918353827,0.0147,25841.0,25840.0,2.99353127]
[1693918354147,0.2309,25848.0,25845.0,0.0185]
[1693918354325,0.0106,25848.0,25847.0,0.1544]
[1693918354535,0.0106,25848.0,25847.0,1.701968]
[1693918354683,0.0106,25848.0,25847.0,2.7641902]
[1693918354895,0.0106,25848.0,25847.0,2.475752]
[1693918355089,0.0106,25848.0,25847.0,1.701968]
[1693918355292,0.24053357,25848.0,25847.0,0.0185]
[1693918355517,0.62717884,25848.0,25845.0,1.572654]
[1693918355731,0.38664527,25847.0,25845.0,0.773826]
[1693918356062,0.38664527,25847.0,25845.0,0.81582676]
[1693918356168,0.38664527,25847.0,25845.0,1.58967076]
[1693918356369,0.38664527,25847.0,25845.0,0.773826]
[1693918356585,0.46814527,25847.0,25842.0,0.792417]
[1693918356783,0.15465811,25846.0,25842.0,1.566333]
[1693918356997,0.38664527,25845.0,25842.0,0.792416]
[1693918357202,0.38664527,25845.0,25842.0,0.0185]
[1693918357426,0.19017048,25844.0,25842.0,0.0185]
[1693918357672,0.57681575,25844.0,25843.0,0.0185]
[1693918357848,0.19017048,25844.0,25843.0,0.792403]
[1693918358057,0.19590452,25846.0,25845.0,0.025]
[1693918358291,0.19590452,25846.0,25845.0,0.798844]
[1693918358502,0.19590452,25846.0,25845.0,0.773844]
[1693918359753,0.001,25846.0,25845.0,1.547688]
[1693918359956,0.001,25846.0,25845.0,1.95400419]
[1693918360164,0.001,25846.0,25845.0,2.66954477]
[1693918360364,0.001,25846.0,25845.0,2.72032515]
[1693918360975,0.001,25846.0,25845.0,2.74532515]
[1693918361174,0.154837,25847.0,25846.0,0.0185]
[1693918361380,0.154837,25847.0,25846.0,1.566128]
[1693918361588,0.149837,25847.0,25846.0,1.566128]
[1693918361801,0.144837,25847.0,25846.0,0.0185]
[1693918362001,0.144837,25847.0,25846.0,0.792314]
[1693918362413,0.139837,25847.0,25846.0,1.587128]
[1693918362608,0.52648227,25847.0,25846.0,0.041]
[1693918362816,0.77208794,25847.0,25846.0,0.041]
[1693918363019,0.76982511,25847.0,25846.0,0.041]
[1693918363418,1.29832895,25847.0,25846.0,0.0323]
[1693918363625,1.57253434,25847.0,25846.0,0.0323]
[1693918363824,0.0815,25844.0,25839.0,0.792519]
[1693918364075,0.54130338,25843.0,25839.0,0.82799098]
[1693918364684,0.54130338,25843.0,25840.0,0.04689484]
[1693918364946,0.38664527,25843.0,25840.0,0.04689484]
[1693918365119,0.38664527,25843.0,25840.0,2.56072478]
[1693918365335,0.37186782,25845.0,25841.0,0.04942635]
[1693918365496,0.004,25843.0,25842.0,1.547854]
[1693918365698,0.002,25843.0,25842.0,1.547854]
[1693918365908,0.002,25843.0,25842.0,2.340287]
[1693918366109,0.1522,25845.0,25843.0,0.0185]
[1693918366321,0.1522,25845.0,25844.0,3.113996]
[1693918366540,0.39804754,25845.0,25844.0,2.340122]
[1693918366746,0.39804754,25845.0,25844.0,1.566248]
[1693918366955,0.39804754,25845.0,25844.0,1.547748]
[1693918367180,0.53884527,25845.0,25844.0,0.0185]
[1693918367380,0.54084527,25845.0,25844.0,0.0185]
[1693918367801,0.62959977,25845.0,25844.0,0.0185]
[1693918368007,0.40145131,25845.0,25844.0,0.0185]
[1693918368207,0.80309658,25845.0,25844.0,0.774874]
[1693918368482,0.80309658,25845.0,25844.0,0.0195]
[1693918369099,0.80309658,25845.0,25844.0,0.001]
[1693918369299,0.80309658,25845.0,25844.0,0.0195]
[1693918370109,0.80309658,25845.0,25844.0,0.793374]
[1693918371040,0.80309658,25845.0,25844.0,0.0195]
[1693918371619,0.92007621,25845.0,25844.0,0.0195]
[1693918372029,0.80309658,25845.0,25844.0,0.0195]
[1693918372641,0.80309658,25845.0,25844.0,0.001]
[1693918372843,0.65089658,25845.0,25844.0,0.001]
[1693918373002,0.40164527,25845.0,25844.0,0.0195]
[1693918373203,0.40164527,25845.0,25844.0,1.567248]
[1693918373450,0.015,25845.0,25844.0,2.341122]
[1693918374022,0.23455084,25845.0,25844.0,2.341122]
[1693918374228,0.62119611,25845.0,25844.0,0.0195]
[1693918374643,0.62119611,25845.0,25844.0,0.001]
[1693918375991,0.40164527,25845.0,25844.0,0.001]
[1693918376220,0.82879557,25845.0,25844.0,0.001]
[1693918376393,1.60263957,25845.0,25844.0,0.001]
[1693918377440,1.79708723,25845.0,25844.0,0.001]
[1693918377636,1.60263957,25845.0,25844.0,0.001]
[1693918378032,3.23182757,25845.0,25844.0,0.001]
[1693918378239,3.29182757,25845.0,25844.0,0.001]
[1693918378440,3.47932757,25845.0,25844.0,0.001]
[1693918378650,3.49932757,25845.0,25844.0,0.001]
[1693918379493,3.49932757,25845.0,25833.0,0.77418]
[1693918379494,0.0015,25838.0,25834.0,0.792657]
[1693918379697,0.54130338,25837.0,25834.0,0.792657]
[1693918379904,0.05428034,25836.0,25834.0,0.792657]
[1693918380114,0.38664527,25835.0,25834.0,0.03061205]
[1693918380317,0.38664527,25835.0,25834.0,0.07562284]
[1693918381303,0.38664527,25835.0,25830.0,0.774271]
[1693918381304,1.56959725,25835.0,25830.0,0.774271]
[1693918381522,0.15615811,25834.0,25829.0,1.628434]
[1693918381706,0.64260929,25833.0,25829.0,1.628434]
[1693918381910,0.7972674,25833.0,25830.0,0.03453491]
[1693918382117,0.38664527,25833.0,25830.0,0.03453491]
[1693918382321,0.38664527,25833.0,25830.0,0.80882191]
[1693918382532,0.38664527,25833.0,25831.0,0.06150967]
[1693918383764,0.38664527,25833.0,25830.0,1.573574]
[1693918383969,0.38664527,25833.0,25831.0,0.001]
[1693918384180,0.03881453,25832.0,25831.0,0.001]
[1693918384388,0.4254598,25832.0,25831.0,0.003]
[1693918384604,0.38664527,25832.0,25831.0,0.003]
[1693918385354,0.38664527,25832.0,25831.0,0.001]
[1693918386190,0.38664527,25832.0,25828.0,1.567184]
[1693918386399,0.38664527,25831.0,25828.0,1.567184]
[1693918386644,0.05413034,25830.0,25828.0,0.0185]
[1693918386851,0.38664527,25829.0,25828.0,0.0185]
[1693918387709,0.38664527,25829.0,25828.0,0.02]
[1693918387921,0.38664527,25829.0,25828.0,0.045]
[1693918388131,0.38664527,25829.0,25826.0,0.774399]
[1693918388337,0.19893567,25828.0,25824.0,0.0185]
[1693918388565,0.54130338,25827.0,25824.0,0.0185]
[1693918388990,0.38664527,25827.0,25824.0,0.0185]
[1693918389172,0.54130338,25827.0,25824.0,0.0185]
[1693918389407,0.38664527,25827.0,25824.0,0.792971]
[1693918389620,0.38664527,25827.0,25824.0,0.792964]
[1693918389851,0.38664527,25827.0,25824.0,1.567437]
[1693918390075,0.38664527,25827.0,25826.0,0.025]
[1693918390289,0.38864527,25827.0,25826.0,0.025]
[1693918390510,0.38864527,25827.0,25825.0,1.548834]
[1693918390714,0.39064527,25827.0,25826.0,0.774413]
[1693918391128,0.39064527,25827.0,25825.0,0.774417]
[1693918391341,0.4715431,25827.0,25825.0,0.774417]
[1693918391577,0.4725431,25827.0,25826.0,0.011]
[1693918392834,0.4715431,25827.0,25823.0,1.548966]
[1693918393045,0.4725431,25827.0,25826.0,0.01]
[1693918393451,0.4745431,25827.0,25826.0,0.01]
[1693918393655,0.4735431,25827.0,25825.0,0.02]
[1693918393878,0.04735431,25826.0,25824.0,0.774468]
[1693918394113,0.38664527,25825.0,25824.0,0.774468]
[1693918394736,0.38664527,25825.0,25824.0,0.954468]
[1693918396409,0.38864527,25825.0,25824.0,0.205]
[1693918396832,0.39064527,25825.0,25824.0,0.23]
[1693918397235,0.43819958,25825.0,25824.0,0.23]
[1693918399203,1.23264258,25825.0,25824.0,0.23]
[1693918399411,0.45819958,25825.0,25824.0,0.23]
[1693918399839,1.23264258,25825.0,25824.0,0.23]
[1693918400037,0.41064527,25825.0,25824.0,0.23]
[1693918400274,0.41064527,25825.0,25824.0,1.004473]
[1693918401319,0.41064527,25825.0,25824.0,0.23]
[1693918404257,1.18508827,25825.0,25824.0,0.23]
[1693918404472,1.95953127,25825.0,25824.0,0.23]
[1693918404678,2.29113689,25825.0,25824.0,0.23]
[1693918405963,0.41064527,25825.0,25824.0,0.23]
[1693918407229,0.41064527,25825.0,25824.0,1.004473]
[1693918407407,0.41064527,25825.0,25824.0,1.778946]
[1693918410638,0.004,25825.0,25824.0,2.553419]
[1693918410842,0.004,25825.0,25824.0,2.689319]
[1693918411277,0.004,25825.0,25824.0,3.0431394]
[1693918411487,0.004,25825.0,25824.0,5.20875767]
[1693918411698,0.004,25825.0,25824.0,5.32137767]
[1693918411926,0.004,25825.0,25824.0,5.31873767]
[1693918412135,0.004,25825.0,25824.0,4.019012]
[1693918412346,0.002,25825.0,25824.0,3.994012]
[1693918412553,0.002,25825.0,25824.0,3.898792]
[1693918412773,0.002,25825.0,25824.0,3.923792]
[1693918413192,0.002,25825.0,25824.0,3.898792]
[1693918413395,0.002,25825.0,25824.0,5.01512378]
[1693918413606,0.154953,25829.0,25825.0,0.04]
[1693918413813,0.38664527,25828.0,25826.0,2.66514578]
[1693918414020,0.05415983,25827.0,25826.0,1.548814]
[1693918414226,0.38664527,25827.0,25826.0,2.66515983]
[1693918415081,0.38664527,25827.0,25826.0,2.69015983]
[1693918415297,0.38664527,25827.0,25826.0,3.43957283]
[1693918415503,0.38664527,25827.0,25826.0,3.46457283]
[1693918415918,0.38664527,25827.0,25826.0,3.43957283]
[1693918416125,0.38664527,25827.0,25826.0,3.45557283]
[1693918416765,0.38664527,25827.0,25826.0,3.60647283]
[1693918417460,0.154953,25829.0,25826.0,3.9931181]
[1693918417668,0.154953,25829.0,25828.0,0.1359]
[1693918417887,0.154953,25829.0,25828.0,3.233312]
[1693918418530,0.154953,25829.0,25828.0,3.228312]
[1693918419367,0.154953,25829.0,25828.0,4.35156609]
[1693918420330,0.154953,25829.0,25828.0,3.240312]
[1693918421813,0.154953,25829.0,25828.0,3.233312]
[1693918422263,0.154953,25829.0,25828.0,2.482959]
[1693918422465,0.154953,25829.0,25828.0,2.352059]
[1693918422664,0.154953,25829.0,25828.0,0.005]
[1693918422665,0.54159827,25829.0,25828.0,0.005]
[1693918422864,0.54159827,25829.0,25827.0,0.774363]
[1693918422865,0.154953,25829.0,25827.0,0.774363]
[1693918423103,0.154953,25829.0,25828.0,2.323059]
[1693918423299,0.154953,25829.0,25828.0,2.348059]
[1693918423497,0.154953,25829.0,25828.0,2.323059]
[1693918423669,0.154953,25829.0,25828.0,1.548706]
[1693918423889,0.154953,25829.0,25828.0,1.571706]
[1693918424289,0.154953,25829.0,25828.0,1.596706]
[1693918424693,0.154953,25829.0,25828.0,2.371059]
[1693918424938,0.154953,25829.0,25828.0,2.346059]
[1693918425473,0.154953,25829.0,25828.0,2.370059]
[1693918425907,0.154953,25829.0,25828.0,2.6980907]
[1693918426127,0.154953,25829.0,25828.0,3.1339907]
[1693918427046,0.154953,25829.0,25828.0,2.805959]
[1693918429227,0.154953,25829.0,25828.0,2.670059]
[1693918429782,0.154953,25829.0,25828.0,0.047]
[1693918429783,0.54159827,25829.0,25828.0,0.047]
[1693918431160,0.54159827,25829.0,25828.0,0.023]
[1693918431356,0.54159827,25829.0,25828.0,0.047]
[1693918431557,0.9165962,25829.0,25828.0,0.047]
[1693918432032,1.7109192,25829.0,25828.0,0.023]
[1693918432327,3.2595652,25829.0,25828.0,0.007]
[1693918432543,3.2595652,25829.0,25828.0,0.03]
[1693918432956,3.2595652,25829.0,25828.0,0.007]
[1693918433163,3.2595652,25829.0,25828.0,0.013]
[1693918433620,3.2595652,25829.0,25824.0,0.18]
[1693918433827,0.64450072,25828.0,25824.0,0.18]
[1693918434042,0.774384,25827.0,25824.0,0.18]
[1693918434242,0.38664527,25826.0,25824.0,0.18]
[1693918435492,0.38764527,25826.0,25824.0,0.18]
[1693918436127,0.38764527,25826.0,25824.0,0.181]
[1693918436321,0.38764527,25826.0,25824.0,0.955472]
[1693918436529,0.38764527,25826.0,25824.0,0.954472]
[1693918436939,0.59674941,25826.0,25824.0,0.954472]
[1693918437143,0.59874941,25826.0,25824.0,0.954472]
[1693918437577,0.003,25826.0,25824.0,2.639318]
[1693918439064,0.001,25826.0,25825.0,0.3]
[1693918439277,0.001,25826.0,25825.0,2.623329]
[1693918439518,0.001,25826.0,25825.0,2.695209]
[1693918440000,0.154953,25829.0,25825.0,2.708589]
[1693918440238,0.154953,25829.0,25828.0,0.1359]
[1693918440443,0.154953,25829.0,25828.0,3.233312]
[1693918441925,0.154953,25829.0,25828.0,3.223472]
[1693918442345,0.156953,25829.0,25828.0,3.225472]
[1693918443203,0.158953,25829.0,25828.0,3.227472]
[1693918444039,0.156953,25829.0,25828.0,3.225472]
[1693918444243,0.157953,25829.0,25828.0,3.225472]
[1693918444445,0.157953,25829.0,25828.0,3.61211727]
[1693918444864,0.156953,25829.0,25828.0,3.61211727]
[1693918445071,0.156953,25829.0,25828.0,3.249472]
[1693918445493,0.154953,25829.0,25828.0,3.247472]
[1693918446124,0.154953,25829.0,25828.0,3.253472]
[1693918446332,0.154953,25829.0,25828.0,3.223472]
[1693918446756,0.154953,25829.0,25828.0,3.270472]
[1693918448053,0.154953,25829.0,25828.0,3.95711727]
[1693918448269,0.22939251,25833.0,25828.0,3.95711727]
[1693918448490,0.22939251,25833.0,25831.0,0.1359]
[1693918448697,0.22939251,25833.0,25832.0,2.322699]
[1693918448944,0.38430851,25833.0,25832.0,2.322699]
[1693918449176,0.246673,25833.0,25832.0,2.322699]
[1693918449837,0.248673,25833.0,25832.0,2.324699]
[1693918450455,0.248673,25833.0,25832.0,1.550466]
[1693918451085,0.3464845,25833.0,25832.0,1.550466]
[1693918451288,0.3464845,25833.0,25832.0,1.552466]
[1693918451289,0.73512977,25833.0,25832.0,1.552466]
[1693918453272,0.87276528,25833.0,25832.0,1.552466]
[1693918454969,0.87276528,25833.0,25832.0,0.004]
[1693918455229,2.37529278,25833.0,25832.0,0.004]
[1693918455436,3.21005867,25833.0,25832.0,0.004]
[1693918455644,3.43945119,25833.0,25832.0,0.004]
[1693918456064,3.55723119,25833.0,25832.0,0.004]
[1693918456273,3.37371718,25833.0,25832.0,0.004]
[1693918456723,1.02117026,25833.0,25832.0,0.004]
[1693918456930,0.73121485,25833.0,25832.0,0.004]
[1693918457151,0.68479604,25833.0,25832.0,1.552466]
[1693918457575,0.77761755,25833.0,25832.0,1.552466]
[1693918458458,0.77761755,25833.0,25832.0,1.732466]
[1693918459126,0.158916,25833.0,25832.0,2.506699]
[1693918460180,0.158916,25833.0,25832.0,2.504699]
[1693918460181,0.156916,25833.0,25832.0,2.504699]
[1693918460396,0.156916,25833.0,25832.0,2.85412541]
[1693918460610,0.002,25833.0,25832.0,3.62552541]
[1693918460826,0.002,25833.0,25832.0,3.55862541]
[1693918461043,0.002,25833.0,25832.0,3.56562541]
[1693918461246,0.09282151,25838.0,25834.0,0.08]
[1693918461451,0.09282151,25838.0,25837.0,0.1359]
[1693918461659,0.09282151,25838.0,25837.0,1.684066]
[1693918461871,0.154879,25838.0,25837.0,2.458149]
[1693918462720,0.156879,25838.0,25837.0,2.459149]
[1693918463203,0.156879,25838.0,25837.0,3.327749]
[1693918463415,0.004,25838.0,25837.0,3.71439427]
[1693918463623,0.004,25838.0,25837.0,3.70939427]
[1693918463834,0.002,25838.0,25837.0,3.70939427]
[1693918464045,0.002,25838.0,25837.0,3.72439427]
[1693918464264,0.09282151,25843.0,25840.0,0.02]
[1693918464472,0.23205628,25844.0,25842.0,0.1359]
[1693918464678,0.09282151,25844.0,25843.0,1.547806]
[1693918464896,0.09282151,25845.0,25843.0,2.321709]
[1693918465095,0.38664527,25845.0,25843.0,2.321709]
[1693918465946,0.54149027,25845.0,25843.0,2.321709]
[1693918466174,0.54149027,25845.0,25843.0,2.323709]
[1693918467013,0.54149027,25845.0,25843.0,2.325709]
[1693918468248,0.54149027,25845.0,25843.0,1.549806]
[1693918468455,0.54149027,25845.0,25843.0,1.551806]
[1693918468670,0.54149027,25845.0,25843.0,2.325709]
[1693918468879,0.54149027,25845.0,25843.0,2.503709]
[1693918469291,0.54149027,25845.0,25843.0,2.505709]
[1693918469700,0.54149027,25845.0,25843.0,1.731806]
[1693918470340,0.38664527,25844.0,25843.0,0.184]
[1693918470586,0.54149027,25845.0,25843.0,0.957903]
[1693918471219,0.54149027,25845.0,25843.0,0.955903]
[1693918471637,0.54149027,25845.0,25843.0,2.505709]
[1693918471876,0.54149027,25845.0,25843.0,2.503709]
[1693918472094,0.7895575,25845.0,25843.0,2.501709]
[1693918472311,0.7895575,25845.0,25843.0,2.505709]
[1693918472549,0.54149027,25845.0,25843.0,2.505709]
[1693918472759,0.54149027,25845.0,25843.0,2.503709]
[1693918472972,0.54149027,25845.0,25843.0,2.505709]
[1693918473409,0.38664527,25844.0,25843.0,0.184]
[1693918473634,1.16051927,25844.0,25843.0,0.184]
[1693918473857,1.4713632,25844.0,25843.0,0.184]
[1693918474498,2.2452372,25844.0,25843.0,0.182]
[1693918474707,3.0191112,25844.0,25843.0,0.182]
[1693918474916,3.0191112,25844.0,25843.0,0.184]
[1693918475126,3.0191112,25844.0,25843.0,0.182]
[1693918475336,3.0191112,25844.0,25843.0,0.184]
[1693918475547,2.70826727,25844.0,25843.0,0.184]
[1693918479366,2.72826727,25844.0,25843.0,0.184]
[1693918479613,2.93826727,25844.0,25843.0,0.184]
[1693918479828,3.32726727,25844.0,25843.0,0.184]
[1693918480041,3.71391254,25844.0,25843.0,0.184]
[1693918480465,3.75391254,25844.0,25843.0,0.182]
[1693918480885,3.81445923,25844.0,25843.0,0.182]
[1693918481090,3.81445923,25844.0,25843.0,0.18]
[1693918481321,3.83745923,25844.0,25843.0,0.182]
[1693918481947,3.86045923,25844.0,25843.0,0.184]
[1693918482377,3.83745923,25844.0,25843.0,0.182]
[1693918482578,3.86045923,25844.0,25843.0,0.184]
[1693918482782,3.90387923,25844.0,25843.0,0.182]
[1693918482982,3.83745923,25844.0,25843.0,0.182]
[1693918483191,3.97406074,25844.0,25843.0,0.18]
[1693918483393,3.98522074,25844.0,25843.0,0.18]
[1693918483616,0.02,25840.0,25833.0,0.774184]
[1693918483818,2.42223029,25838.0,25833.0,0.774184]
[1693918484021,0.78751149,25837.0,25833.0,0.774184]
[1693918484235,1.548233,25836.0,25833.0,0.774184]
[1693918484442,0.54130338,25835.0,25832.0,1.548449]
[1693918484651,0.774173,25834.0,25832.0,1.548449]
[1693918484871,0.38664527,25833.0,25832.0,0.774217]
[1693918485303,0.38664527,25833.0,25831.0,1.950479]
[1693918485974,0.38664527,25833.0,25831.0,1.176235]
[1693918486175,0.38664527,25833.0,25831.0,1.950486]
[1693918486381,0.39064527,25833.0,25832.0,0.019]
[1693918486790,0.38864527,25833.0,25831.0,1.975486]
[1693918487145,0.38864527,25833.0,25831.0,1.950486]
[1693918487146,0.38664527,25833.0,25831.0,1.950486]
[1693918487357,0.38864527,25833.0,25832.0,0.019]
[1693918487537,0.7141533,25833.0,25832.0,0.019]
[1693918488363,0.7161533,25833.0,25832.0,0.019]
[1693918488610,2.2645593,25833.0,25832.0,0.019]
[1693918488901,2.2605593,25833.0,25830.0,1.548572]
[1693918489133,0.06113724,25832.0,25831.0,0.025]
[1693918489330,2.77048151,25832.0,25831.0,0.025]
[1693918489536,2.77048151,25832.0,25826.0,0.2609]
[1693918489720,2.08986138,25831.0,25828.0,0.774333]
[1693918489910,1.93520327,25831.0,25828.0,1.548686]
[1693918490112,1.93520327,25831.0,25830.0,0.019]
[1693918490264,2.22905062,25831.0,25830.0,0.019]
[1693918491319,3.00333862,25831.0,25827.0,1.548731]
[1693918491523,3.15799673,25831.0,25827.0,1.548731]
[1693918491739,3.15999673,25831.0,25828.0,0.025]
[1693918491941,0.27786879,25830.0,25828.0,0.05]
[1693918492143,0.38664527,25829.0,25828.0,0.774353]
[1693918492557,0.004,25831.0,25828.0,2.323059]
[1693918492768,0.002,25831.0,25830.0,0.102]
[1693918492971,0.154917,25835.0,25830.0,2.424879]
[1693918493191,0.38664527,25834.0,25832.0,0.102]
[1693918493398,0.38664527,25834.0,25833.0,1.548406]